bitfinex/quotes_ETHUSD_20240822
["timestamp","ask_amount","ask_price","bid_price","bid_amount"]
[1724338898505,7.39,2608.2,2607.7,3.83471]
[1724338898715,7.39,2608.2,2607.7,7.66942]
[1724338898911,11.44472,2608.3,2607.8,3.83464]
[1724338899411,3.83408,2608.2,2607.7,3.83471]
[1724338900062,15.27867,2608.3,2607.8,3.83464]
[1724338900212,11.44462,2608.3,2607.5,6.18318]
[1724338900544,3.83407,2608.2,2607.7,3.83475]
[1724338901571,7.66821,2608.2,2607.7,3.83475]
[1724338901758,3.83407,2608.2,2607.7,3.83475]
[1724338902161,3.83407,2608.2,2607.8,3.83463]
[1724338902468,2.3047,2608.3,2607.8,3.83463]
[1724338902630,3.97,2608.4,2608.0,3.83425]
[1724338902835,7.39,2608.5,2608.1,3.83417]
[1724338903076,3.83363,2608.5,2608.1,3.83417]
[1724338903293,2.3334,2608.6,2608.1,3.83417]
[1724338903294,6.16688,2608.6,2608.1,3.83417]
[1724338905282,3.83348,2608.6,2608.1,3.83417]
[1724338905796,3.83348,2608.6,2608.0,6.26364]
[1724338906087,7.80334,2608.7,2608.3,3.83383]
[1724338906088,3.97,2608.7,2608.3,3.83383]
[1724338906238,7.39,2608.8,2608.3,3.83383]
[1724338906671,7.39,2608.8,2608.3,7.66766]
[1724338906853,7.39,2608.8,2608.3,3.83383]
[1724338907585,7.39,2608.8,2608.4,3.83374]
[1724338907758,20.13293,2609.0,2608.5,3.83361]
[1724338907759,3.97,2609.0,2608.5,3.83361]
[1724338907958,3.97,2609.0,2608.4,2.4284]
[1724338908155,3.97,2609.0,2608.5,3.83354]
[1724338908343,3.97,2609.0,2608.5,7.66706]
[1724338908549,3.97,2609.0,2608.5,3.83352]
[1724338909151,3.95419572,2609.0,2608.5,3.83352]
[1724338910202,3.95419572,2609.0,2608.5,4.843095]
[1724338910383,3.83275,2609.1,2608.5,4.843095]
[1724338913146,3.83275,2609.1,2608.5,8.676615]
[1724338913554,7.80251,2609.3,2608.6,3.83345]
[1724338914780,3.83266,2609.2,2608.7,2.3009]
[1724338914984,3.83274,2609.1,2608.7,2.3009]
[1724338915292,3.83259,2609.2,2608.7,2.3009]
[1724338916295,11.63506,2609.3,2608.7,3.0152925]
[1724338916468,3.83259,2609.2,2608.7,3.0152925]
[1724338916880,3.83275,2609.1,2608.7,3.0152925]
[1724338917415,3.83275,2609.1,2608.7,2.3009]
[1724338919259,3.83275,2609.1,2608.5,3.83356]
[1724338919473,3.97,2609.0,2608.5,3.83356]
[1724338920498,3.97,2608.7,2608.1,9.7365]
[1724338920670,3.97,2608.4,2608.1,7.38]
[1724338920871,7.80389,2608.4,2607.9,2.3565]
[1724338921074,7.80389,2608.4,2607.9,2.59215]
[1724338921485,7.8043,2608.1,2607.6,2.3883]
[1724338921812,3.97,2608.1,2607.6,2.3883]
[1724338922297,3.97,2608.1,2607.6,6.22322]
[1724338922702,5.56411818,2608.4,2607.9,3.83441]
[1724338923001,5.56411818,2608.7,2608.1,6.17641]
[1724338923563,5.51411818,2608.7,2608.1,6.17641]
[1724338923789,5.51411818,2608.7,2608.1,2.3423]
[1724338924104,9.26116818,2608.6,2608.1,2.3423]
[1724338924265,9.26117818,2608.6,2608.1,2.3423]
[1724338924463,3.83377,2608.4,2607.8,6.19253]
[1724338924775,3.83349,2608.6,2608.2,2.3579]
[1724338924776,1.59411818,2608.6,2608.2,2.3579]
[1724338924986,1.59411818,2608.9,2608.2,2.3579]
[1724338925311,7.39,2609.2,2607.6,3.8349]
[1724338925312,1.59411818,2609.1,2608.6,6.29245]
[1724338925599,1.59411818,2609.1,2608.6,6.921695]
[1724338926164,1.59411818,2609.1,2608.6,3.088245]
[1724338926443,1.59411818,2609.0,2608.6,3.088245]
[1724338926622,1.59411818,2608.9,2608.6,3.088245]
[1724338927123,1.59411818,2608.9,2608.6,0.629245]
[1724338928460,1.59411818,2608.9,2608.6,4.462695]
[1724338928619,1.994437,2609.0,2608.6,4.462695]
[1724338928620,1.59411818,2608.8,2608.6,0.629245]
[1724338929469,1.59411818,2608.7,2608.6,0.629245]
[1724338929762,1.994437,2608.9,2608.6,0.629245]
[1724338929763,1.59411818,2608.9,2608.6,0.629245]
[1724338929929,1.59411818,2609.0,2608.6,0.629245]
[1724338930441,1.59411818,2609.0,2608.6,4.462705]
[1724338930643,1.59411818,2609.0,2608.7,0.4462705]
[1724338931231,1.59411818,2609.0,2608.6,4.462705]
[1724338931841,5.42678818,2609.2,2608.6,4.462635]
[1724338932473,9.25945818,2609.2,2608.6,4.462635]
[1724338932637,3.83287,2609.1,2608.6,0.629245]
[1724338932837,3.83289,2609.0,2608.4,3.83366]
[1724338933058,9.25951818,2609.2,2608.5,3.83359]
[1724338933257,3.83277,2609.1,2608.4,3.83366]
[1724338933473,3.83277,2609.1,2608.5,0.610906]
[1724338934277,3.83305,2608.9,2608.5,0.610906]
[1724338934436,3.83305,2608.9,2608.3,6.10924]
[1724338935060,3.83305,2608.9,2608.3,2.2754]
[1724338935259,3.83373,2608.5,2608.0,2.464]
[1724338935458,3.83373,2608.5,2607.7,3.83469]
[1724338935459,3.83403,2608.3,2607.7,3.83469]
[1724338935658,3.83403,2608.3,2607.8,0.632929]
[1724338936445,7.39,2608.8,2608.3,3.83391]
[1724338936762,7.39,2608.8,2608.5,3.83348]
[1724338937539,7.39,2608.8,2608.6,3.83346]
[1724338937757,9.39665818,2609.3,2608.6,4.216736]
[1724338938154,3.83259,2609.2,2608.6,4.216736]
[1724338938352,3.83259,2609.2,2608.7,3.83332]
[1724338938553,5.56411818,2609.3,2608.8,3.83311]
[1724338938901,3.83244,2609.3,2608.9,0.5083667]
[1724338939098,3.83244,2609.3,2608.7,3.83322]
[1724338940053,3.83262,2609.2,2608.7,3.83322]
[1724338940688,3.97,2609.3,2608.5,2.2934]
[1724338940689,3.83296,2609.0,2608.5,2.2934]
[1724338940991,10.23663,2609.3,2608.7,3.83325]
[1724338941488,7.80253,2609.3,2608.7,3.83325]
[1724338941894,3.97,2609.3,2608.8,3.8331]
[1724338942992,7.80244,2609.3,2608.8,3.8331]
[1724338943199,9.39655818,2609.3,2608.7,3.83331]
[1724338943395,9.39655818,2609.3,2608.7,3.83325]
[1724338943692,9.39655818,2609.3,2608.7,4.75140134]
[1724338944261,7.80244,2609.3,2608.7,4.75140134]
[1724338944671,7.80244,2609.3,2608.7,0.91815134]
[1724338944672,11.63496,2609.3,2608.7,0.91815134]
[1724338944868,11.63496,2609.3,2608.7,4.75140134]
[1724338944869,7.80244,2609.3,2608.7,4.75140134]
[1724338945080,7.80244,2609.3,2608.7,8.58464134]
[1724338945292,7.80244,2609.3,2608.7,8.58463134]
[1724338945478,3.83285,2609.1,2608.2,2.3533]
[1724338945691,3.83297,2609.0,2608.4,3.83366]
[1724338945891,3.83297,2609.0,2608.4,7.66734]
[1724338946208,3.83297,2609.0,2608.5,0.766734]
[1724338946739,3.83285,2609.1,2608.6,3.83342]
[1724338946740,3.83274,2609.1,2608.6,3.83342]
[1724338947101,1.59411818,2609.2,2608.6,3.83342]
[1724338947322,1.59411818,2609.2,2608.8,3.83317]
[1724338947795,1.59411818,2609.2,2608.7,6.26201]
[1724338948401,1.59411818,2609.1,2608.7,6.26201]
[1724338948800,1.59411818,2609.0,2608.7,6.26201]
[1724338949006,1.59411818,2609.0,2608.7,2.4287]
[1724338949280,1.59411818,2609.0,2608.7,6.262]
[1724338949591,1.59411818,2608.9,2608.7,6.262]
[1724338949981,1.59411818,2609.0,2608.7,6.262]
[1724338950381,1.59411818,2609.0,2608.6,3.83346]
[1724338951124,1.59411818,2609.0,2608.6,4.847914]
[1724338951443,1.59411818,2608.9,2608.5,6.31101]
[1724338951796,1.59411818,2608.9,2608.5,10.14455]
[1724338952007,1.59411818,2609.0,2608.5,10.14455]
[1724338952502,1.59411818,2609.0,2608.8,3.83315]
[1724338952723,1.59411818,2609.1,2608.7,3.83324]
[1724338952911,1.99315575,2609.2,2608.7,3.83324]
[1724338952912,1.59411818,2609.0,2608.7,3.83324]
[1724338953338,1.59411818,2609.0,2608.8,3.83315]
[1724338953529,1.99555285,2609.1,2608.8,3.83315]
[1724338953530,1.59411818,2609.1,2608.8,3.83315]
[1724338953742,1.59411818,2609.2,2608.9,3.83301]
[1724338953903,1.59411818,2609.2,2608.7,8.680826]
[1724338954104,1.59411818,2609.2,2608.8,0.8680826]
[1724338954334,1.59411818,2609.1,2608.7,3.8332]
[1724338954500,1.59411818,2609.1,2608.7,7.66644]
[1724338954698,1.59411818,2609.1,2608.8,3.83313]
[1724338954926,1.59411818,2609.2,2608.8,3.83313]
[1724338955444,1.59411818,2609.1,2608.8,3.83313]
[1724338956470,1.59411818,2609.2,2608.8,4.599763]
[1724338956636,1.59411818,2609.1,2608.7,3.8332]
[1724338957037,1.59411818,2609.1,2608.6,3.83344]
[1724338957242,1.59411818,2609.0,2608.6,3.83344]
[1724338957441,1.59411818,2609.0,2608.5,2.4775]
[1724338957442,5.42706818,2609.0,2608.5,2.4775]
[1724338957601,1.59411818,2609.0,2608.7,3.83331]
[1724338957805,1.59411818,2609.1,2608.7,3.83331]
[1724338958624,1.59411818,2609.1,2608.6,3.83338]
[1724338958823,1.59411818,2609.1,2608.8,3.83309]
[1724338959343,1.59411818,2609.2,2608.9,3.83302]
[1724338960054,1.59411818,2609.2,2608.8,3.83309]
[1724338960231,1.59411818,2609.1,2608.8,3.83309]
[1724338960947,5.42688818,2609.1,2608.6,3.83336]
[1724338961143,1.59411818,2609.0,2608.7,3.83325]
[1724338961455,1.59411818,2609.1,2608.6,4.9109335]
[1724338961917,1.59411818,2609.0,2608.6,3.83336]
[1724338962323,1.59411818,2608.9,2608.5,3.108625]
[1724338962534,1.59411818,2608.9,2608.5,2.4775]
[1724338963505,5.42701818,2609.0,2608.5,2.4775]
[1724338963739,1.59411818,2609.0,2608.5,2.4775]
[1724338964407,1.59411818,2608.9,2608.5,2.4775]
[1724338965249,1.59411818,2608.9,2608.5,2.72525]
[1724338969026,1.59411818,2609.0,2608.5,2.72525]
[1724338969451,1.59411818,2608.9,2608.5,2.72525]
[1724338969651,1.59411818,2609.0,2608.5,2.72525]
[1724338970124,1.59411818,2609.1,2608.6,0.34918209]
[1724338970324,1.59411818,2609.1,2608.7,2.3992]
[1724338970527,1.59411818,2609.2,2608.7,2.3992]
[1724338970765,1.59411818,2609.2,2608.8,0.2671725]
[1724338971569,1.99549637,2609.3,2608.8,0.2671725]
[1724338971570,1.59411818,2609.1,2608.8,0.2671725]
[1724338973540,1.59411818,2609.1,2608.7,2.3992]
[1724338977958,1.59411818,2609.1,2608.4,2.2623]
[1724338978160,1.59411818,2609.0,2608.4,2.2623]
[1724338979260,1.59411818,2609.1,2608.4,2.2623]
[1724338979461,1.59411818,2609.1,2608.5,0.96423]
[1724338980145,1.59411818,2609.1,2608.6,2.2623]
[1724338980674,1.59411818,2609.0,2608.6,2.2623]
[1724338981586,1.59411818,2608.9,2608.6,2.2623]
[1724338982168,1.59411818,2609.0,2608.6,2.2623]
[1724338982475,1.59411818,2609.0,2608.7,0.322653]
[1724338984766,1.59411818,2608.9,2608.7,0.322653]
[1724338985080,1.59411818,2608.9,2608.6,2.2623]
[1724338986067,1.59411818,2609.0,2608.6,2.2623]
[1724338986794,1.59411818,2608.9,2608.6,2.2623]
[1724338987285,1.59411818,2609.0,2608.6,2.2623]
[1724338988386,1.59411818,2609.1,2608.6,2.2623]
[1724338988589,1.59411818,2609.2,2608.8,2.3442]
[1724338988958,1.59411818,2609.3,2608.8,2.3442]
[1724338989151,1.652,2609.4,2608.8,2.3442]
[1724338989347,3.6503115,2609.4,2608.9,0.2666853]
[1724338990385,1.652,2609.4,2609.0,2.269]
[1724338990581,1.9983115,2609.5,2609.0,2.269]
[1724338991588,1.9983115,2609.5,2608.8,3.0]
[1724338991884,1.9983115,2609.5,2608.8,2.269]
[1724338992044,1.9983115,2609.5,2608.8,6.60531395]
[1724338993793,1.99750908,2609.6,2608.9,2.4719]
[1724338994084,1.99750908,2609.7,2608.9,2.4719]
[1724338994287,1.99750908,2609.6,2609.0,0.71679703]
[1724338994663,1.99750908,2609.7,2609.1,2.54854262]
[1724338994875,9.78701089,2610.0,2609.1,2.4719]
[1724338994876,1.99750908,2609.8,2609.1,2.4719]
[1724338995188,1.99750908,2609.8,2609.2,0.3188697]
[1724338996354,1.99750908,2609.7,2609.2,0.3188697]
[1724338996557,1.99750908,2609.8,2609.1,2.4719]
[1724338998196,1.99627094,2609.9,2609.1,2.4719]
[1724338998396,10.18477932,2610.4,2609.3,2.3615]
[1724338998397,1.99627094,2610.3,2609.3,2.3615]
[1724338998600,1.99627094,2610.3,2609.5,2.3615]
[1724338999195,1.99627094,2610.4,2609.5,2.3615]
[1724338999394,1.99627094,2610.6,2609.6,0.07662424]
[1724338999560,9.38627094,2610.7,2609.7,2.3322]
[1724338999759,9.38627094,2610.7,2609.8,0.24088242]
[1724339000194,8.39387094,2610.8,2610.0,2.4177]
[1724339001190,6.3976,2610.8,2610.0,2.4177]
[1724339001866,0.55,2610.7,2610.0,2.4177]
[1724339002184,3.964,2610.8,2610.2,2.2709]
[1724339002390,8.39077094,2611.0,2610.2,2.2709]
[1724339002561,6.3945,2611.0,2610.2,2.2709]
[1724339003975,0.55,2610.9,2610.2,2.2709]
[1724339005189,3.964,2610.7,2609.8,2.57318242]
[1724339005390,3.964,2610.7,2610.0,2.3323]
[1724339006101,7.94,2610.9,2610.0,2.3323]
[1724339006102,0.55,2610.9,2610.0,2.3323]
[1724339006312,2.39223673,2612.0,2610.7,3.964]
[1724339006467,1.99161669,2612.4,2610.9,2.3676]
[1724339006672,7.51270338,2612.8,2611.1,2.3676]
[1724339006673,3.964,2612.2,2611.1,2.3676]
[1724339007010,3.964,2611.6,2611.1,2.3676]
[1724339008010,3.964,2611.3,2610.7,2.2879]
[1724339008184,3.964,2611.3,2610.7,2.51669]
[1724339009067,3.964,2611.6,2610.7,2.51669]
[1724339009208,0.55,2611.5,2610.7,2.51669]
[1724339009717,3.964,2611.6,2610.7,2.51669]
[1724339011688,6.964,2611.9,2610.7,2.51669]
[1724339011879,6.964,2611.9,2610.8,0.251669]
[1724339013011,0.55,2611.8,2610.8,0.251669]
[1724339013214,0.55,2611.8,2610.9,2.2935]
[1724339013503,7.39,2612.3,2610.9,2.2935]
[1724339013693,3.964,2612.1,2611.0,2.2935]
[1724339013903,3.964,2612.1,2611.1,0.52935]
[1724339014102,3.964,2612.1,2611.2,2.2935]
[1724339014604,3.964,2612.2,2611.2,2.2935]
[1724339014808,2.77,2612.6,2611.2,2.2935]
[1724339015114,3.964,2612.5,2611.4,2.2935]
[1724339015315,2.2646,2612.9,2611.4,2.2935]
[1724339015316,3.964,2612.2,2611.4,2.2935]
[1724339017142,3.964,2612.5,2611.4,2.2935]
[1724339017457,3.55,2612.4,2611.4,2.2935]
[1724339017656,3.0,2612.4,2611.4,2.2935]
[1724339017855,3.964,2612.5,2611.5,0.252285]
[1724339018059,3.964,2612.5,2611.6,2.4324]
[1724339019170,3.0,2612.7,2611.7,2.4324]
[1724339019171,7.39,2612.7,2611.7,2.4324]
[1724339020426,7.39,2612.7,2611.8,2.4324]
[1724339020632,0.12584867,2613.2,2612.0,2.4324]
[1724339021054,0.12584867,2613.2,2612.1,2.2778]
[1724339021214,0.12584867,2613.2,2612.1,2.35433962]
[1724339021417,0.12584867,2613.2,2612.1,2.2778]
[1724339021623,0.12584867,2613.2,2612.1,3.0]
[1724339021969,0.12584867,2613.2,2612.3,2.2778]
[1724339022167,0.12584867,2613.2,2612.4,2.2778]
[1724339022677,3.964,2613.1,2612.4,2.2778]
[1724339023226,0.12584867,2613.2,2612.4,2.2778]
[1724339024358,0.12584867,2613.2,2612.4,3.0]
[1724339024698,0.12584867,2613.2,2612.6,2.3304]
[1724339024868,4.08984867,2613.2,2612.6,2.3304]
[1724339026196,4.08984867,2613.2,2612.3,7.38]
[1724339026197,4.08984867,2613.2,2612.3,9.8007]
[1724339026420,4.08984867,2613.2,2612.3,2.4207]
[1724339026421,3.964,2612.6,2612.3,2.4207]
[1724339026696,3.964,2612.6,2612.0,2.4207]
[1724339026899,0.55,2612.5,2612.0,2.66277]
[1724339027097,0.55,2612.5,2611.1,7.38]
[1724339027098,3.964,2612.3,2611.6,2.4834]
[1724339028784,7.94,2612.5,2611.6,2.4834]
[1724339028988,7.92146883,2612.5,2611.6,2.4834]
[1724339029190,7.92146883,2612.5,2611.7,0.24834]
[1724339029393,3.964,2612.3,2611.7,0.24834]
[1724339030895,3.964,2612.3,2611.6,2.4834]
[1724339031100,0.55,2612.2,2611.6,2.4834]
[1724339031903,3.964,2611.7,2610.9,2.2716]
[1724339032109,3.964,2611.7,2611.0,0.22716]
[1724339036135,3.964,2612.0,2611.0,0.22716]
[1724339036310,3.55,2611.9,2611.0,0.22716]
[1724339037646,0.55,2611.9,2611.0,0.22716]
[1724339038528,2.3127,2611.8,2611.0,0.22716]
[1724339038733,4.514,2611.7,2611.0,0.22716]
[1724339039118,3.964,2611.4,2610.9,2.2716]
[1724339039324,3.964,2611.1,2610.6,2.2512]
[1724339040244,3.964,2610.8,2610.3,2.66142455]
[1724339040441,5.282,2611.1,2610.3,2.2611]
[1724339040745,0.55,2611.0,2610.4,0.22611]
[1724339041107,7.39,2611.4,2610.4,0.22611]
[1724339041309,3.55,2611.3,2610.4,0.22611]
[1724339041722,5.282,2611.2,2610.4,0.22611]
[1724339042047,0.55,2611.1,2610.4,0.22611]
[1724339043913,0.51998766,2611.1,2610.4,0.22611]
[1724339044327,7.39,2611.4,2610.5,2.3378]
[1724339044649,7.39,2611.9,2610.6,2.594191]
[1724339044822,7.39,2611.9,2610.1,3.7]
[1724339044823,7.39,2611.9,2610.8,2.4991]
[1724339045024,7.657,2611.6,2610.8,2.4991]
[1724339045226,7.657,2611.6,2610.2,2.4991]
[1724339045227,5.282,2611.2,2610.2,2.4991]
[1724339045429,12.672,2611.2,2610.3,0.54991]
[1724339045736,12.672,2611.2,2610.2,2.4991]
[1724339045942,0.55,2611.1,2610.2,2.4991]
[1724339046313,12.672,2611.2,2610.2,2.4991]
[1724339048452,0.55,2611.1,2610.2,2.4991]
[1724339048651,0.55,2611.1,2610.3,0.24991]
[1724339050624,0.55,2611.1,2610.2,2.4991]
[1724339050953,5.8875,2611.1,2610.2,2.4991]
[1724339051190,7.39,2611.2,2610.2,2.4991]
[1724339052620,0.55,2611.1,2610.2,2.4991]
[1724339052844,7.39,2611.2,2610.2,2.4991]
[1724339053043,7.39,2611.2,2610.3,2.92111]
[1724339053656,7.39,2611.8,2610.3,2.92111]
[1724339053857,7.39,2611.8,2610.5,2.4679]
[1724339055061,0.55,2611.7,2610.5,2.4679]
[1724339055364,7.39,2611.8,2610.7,2.465]
[1724339055569,7.39,2611.8,2610.8,2.465]
[1724339057471,0.55,2611.7,2610.8,2.465]
[1724339057977,7.39,2611.8,2611.0,2.3444]
[1724339058178,7.39,2611.8,2610.7,3.0]
[1724339058179,7.39,2611.8,2611.2,2.3444]
[1724339058952,5.282,2611.5,2610.7,2.3444]
[1724339059184,0.55,2611.4,2610.7,2.3444]
[1724339059382,5.282,2611.1,2610.7,2.3444]
[1724339061152,0.55,2611.4,2610.7,2.3444]
[1724339061352,3.55,2611.4,2610.8,0.23444]
[1724339062114,3.55,2611.4,2610.7,2.3444]
[1724339064078,0.55,2611.4,2610.7,2.3444]
[1724339064309,3.0,2611.7,2610.7,2.3444]
[1724339064614,0.55,2611.6,2610.7,2.3444]
[1724339064776,0.55,2611.7,2610.9,2.4139]
[1724339065378,0.55,2611.8,2610.9,2.4139]
[1724339065583,12.672,2611.9,2610.9,2.4139]
[1724339065881,7.39,2611.9,2610.9,2.4139]
[1724339066533,12.33,2612.2,2610.9,2.4139]
[1724339066534,7.39,2612.2,2610.9,2.4139]
[1724339066822,7.39,2612.2,2611.1,2.2543]
[1724339067119,7.39,2613.0,2611.2,2.2543]
[1724339067295,7.39,2613.0,2611.6,2.2543]
[1724339067816,7.39,2613.0,2611.7,2.2543]
[1724339068019,7.39,2613.0,2611.8,2.2543]
[1724339070125,7.39,2613.3,2611.9,9.74]
[1724339070324,7.39,2613.3,2612.1,2.36]
[1724339070540,7.39,2613.3,2612.2,2.896]
[1724339072424,7.39,2613.3,2612.3,2.3741]
[1724339073524,7.39,2613.3,2612.5,2.3833]
[1724339073701,7.39,2613.3,2612.6,0.07654255]
[1724339074084,7.39,2613.3,2612.7,2.2622]
[1724339074283,7.39,2613.3,2612.8,0.23387426]
[1724339074811,7.39,2613.3,2612.7,2.2622]
[1724339075128,5.832,2613.1,2612.7,2.2622]
[1724339075324,8.1505,2613.1,2612.2,2.2622]
[1724339075625,5.282,2612.7,2612.2,2.2622]
[1724339075826,0.55,2612.6,2612.2,2.2622]
[1724339077136,0.55,2612.6,2611.8,2.3265]
[1724339077137,3.55,2612.6,2611.8,2.3265]
[1724339077337,3.55,2612.6,2611.8,2.55915]
[1724339077543,5.282,2613.1,2611.8,2.55915]
[1724339077845,0.55,2613.0,2611.8,2.55915]
[1724339078563,0.55,2613.0,2611.9,3.0]
[1724339078880,0.55,2613.0,2612.0,2.3484]
[1724339079077,0.55,2613.0,2612.1,2.88324]
[1724339081894,5.282,2613.1,2612.1,2.88324]
[1724339082195,5.282,2613.1,2612.3,2.2794]
[1724339082749,0.55,2613.0,2612.3,2.2794]
[1724339086260,2.8925,2613.0,2612.3,2.2794]
[1724339087173,0.55,2613.0,2612.3,2.50734]
[1724339087671,5.282,2613.1,2612.3,2.50734]
[1724339088806,7.51584867,2613.2,2612.3,2.50734]
[1724339088988,7.51584867,2613.2,2612.4,2.3649]
[1724339090885,7.51584867,2613.2,2612.6,2.4768]
[1724339091084,7.51584867,2613.2,2612.7,0.24768]
[1724339091366,0.55,2613.1,2612.6,2.4768]
[1724339091572,0.55,2613.1,2612.1,2.4099]
[1724339091573,5.282,2612.9,2612.1,2.4099]
[1724339091934,0.55,2613.1,2612.1,2.4099]
[1724339095081,7.51584867,2613.2,2612.1,2.4099]
[1724339095290,7.51584867,2613.2,2612.3,2.4655]
[1724339095475,7.51584867,2613.2,2612.4,2.54204277]
[1724339095884,7.51584867,2613.2,2612.4,2.4655]
[1724339097989,7.51584867,2613.2,2612.6,2.3304]
[1724339098195,0.12584867,2613.2,2612.8,2.3304]
[1724339098398,0.12584867,2613.2,2612.9,0.23304]
[1724339099130,0.12584867,2613.2,2612.8,2.3304]
[1724339099293,0.55,2613.1,2612.3,2.458]
[1724339099498,7.51584867,2613.2,2612.3,2.458]
[1724339099687,7.51584867,2613.2,2612.5,2.458]
[1724339101287,7.51584867,2613.2,2612.6,0.07654127]
[1724339101530,7.51584867,2613.2,2612.7,2.458]
[1724339102229,7.51584867,2613.2,2612.4,2.458]
[1724339102382,0.55,2613.1,2612.4,2.458]
[1724339102586,0.55,2613.1,2612.5,0.2458]
[1724339103391,11.46984867,2613.2,2612.6,2.3402]
[1724339103392,7.51584867,2613.2,2612.6,2.3402]
[1724339103588,7.51584867,2613.2,2612.7,0.07654103]
[1724339103788,7.51584867,2613.2,2612.8,2.3402]
[1724339104030,7.51584867,2613.2,2612.9,0.2416741]
[1724339104231,0.12584867,2613.2,2613.0,2.3402]
[1724339104597,0.12584867,2613.2,2613.0,0.32445761]
[1724339106226,0.12584867,2613.2,2612.5,3.80313871]
[1724339106435,0.12584867,2613.2,2612.6,1.40689958]
[1724339106749,0.12584867,2613.2,2612.7,2.84317552]
[1724339106911,0.12584867,2613.2,2612.8,4.40682455]
[1724339107099,0.01308496,2613.2,2612.9,5.87275266]
[1724339107436,0.01308496,2613.2,2613.0,1.33021614]
[1724339107437,0.00136052,2613.2,2613.0,1.33021614]
[1724339107737,0.00136052,2613.2,2613.1,2.3797]
[1724339108047,0.00136052,2613.2,2613.1,8.10729346]
[1724339108258,0.00136052,2613.2,2613.1,8.10727391]
[1724339109236,0.00136052,2613.2,2613.1,6.77718827]
[1724339109744,0.00136052,2613.2,2613.1,6.70983311]
[1724339110588,0.00136052,2613.2,2613.1,7.2983672]
[1724339110856,0.00136052,2613.2,2613.1,6.70983311]
[1724339111363,0.00136052,2613.2,2613.1,7.51297182]
[1724339111529,0.00136052,2613.2,2613.1,6.70983311]
[1724339111862,0.00136052,2613.2,2613.1,7.6516011]
[1724339112658,0.00136052,2613.2,2613.1,8.45465081]
[1724339112830,0.00136052,2613.2,2613.1,7.6515121]
[1724339113463,0.00136052,2613.2,2613.1,8.45465081]
[1724339113622,0.00136052,2613.2,2613.1,7.6515121]
[1724339113964,2.4847,2615.0,2613.4,2.2787]
[1724339114162,5.267,2615.4,2613.6,2.4855]
[1724339114163,2.4941,2615.3,2613.6,2.4855]
[1724339114674,2.4941,2615.3,2613.7,2.4855]
[1724339114838,2.4941,2615.3,2613.7,5.4855]
[1724339115367,2.4941,2614.9,2613.7,2.4855]
[1724339115672,2.4941,2614.9,2613.8,0.54855]
[1724339115838,2.4941,2614.9,2613.8,3.54855]
[1724339116353,0.55,2614.8,2613.8,3.54855]
[1724339116870,2.3098,2614.7,2613.7,2.4855]
[1724339117039,0.55,2614.6,2613.7,2.4855]
[1724339118459,2.3098,2614.7,2613.7,2.4855]
[1724339120034,7.39,2614.8,2613.7,2.4855]
[1724339120234,7.39,2614.8,2613.8,2.87855]
[1724339120577,7.39,2614.8,2613.9,3.0]
[1724339120745,2.2737,2615.0,2613.8,2.3877]
[1724339121101,2.2737,2615.0,2613.8,5.3877]
[1724339121736,2.2737,2615.0,2613.9,2.3877]
[1724339121936,2.2737,2615.0,2614.0,2.96967]
[1724339122183,2.2737,2615.0,2614.1,3.0]
[1724339122595,2.3676,2615.4,2614.2,2.50738439]
[1724339122744,2.3676,2615.4,2614.3,3.0]
[1724339122945,2.3676,2615.4,2614.4,0.62721904]
[1724339125165,0.1250989,2615.7,2614.5,2.3843]
[1724339125166,2.6194989,2615.7,2614.5,2.3843]
[1724339125373,2.6194989,2615.7,2614.5,5.3843]
[1724339125640,2.6194989,2615.7,2614.5,2.3843]
[1724339125862,2.4944,2615.1,2614.0,2.2925]
[1724339126080,2.4944,2615.1,2614.0,0.22925]
[1724339127017,2.258,2614.9,2614.0,0.22925]
[1724339127274,5.817,2614.8,2614.0,0.22925]
[1724339127680,0.55,2614.8,2614.0,0.22925]
[1724339128053,2.258,2614.9,2614.0,0.22925]
[1724339128254,5.267,2614.8,2613.8,2.2925]
[1724339128482,5.817,2614.8,2613.8,2.2925]
[1724339129257,0.55,2614.8,2613.8,2.2925]
[1724339129469,2.258,2614.9,2613.8,2.2925]
[1724339129677,0.55,2614.8,2613.8,2.2925]
[1724339129864,0.55,2614.8,2613.9,0.22925]
[1724339130211,0.55,2614.8,2613.9,3.22925]
[1724339130784,6.207,2614.9,2613.9,3.22925]
[1724339130986,3.949,2615.2,2614.0,2.4578]
[1724339131171,3.949,2615.2,2614.1,0.568705]
[1724339131560,3.949,2615.2,2614.1,3.568705]
[1724339132389,0.55,2615.1,2614.1,3.568705]
[1724339132893,2.3336,2615.0,2614.1,3.568705]
[1724339133087,0.55,2614.9,2614.1,3.568705]
[1724339133321,3.949,2615.2,2614.2,0.6026505]
[1724339133734,7.39,2615.4,2614.3,2.4827]
[1724339134612,7.39,2615.8,2614.3,8.08]
[1724339134815,7.39,2615.8,2614.5,2.3479]
[1724339135015,7.39,2615.8,2614.7,2.3479]
[1724339135180,7.39,2615.8,2614.8,2.42436245]
[1724339135383,7.39,2615.8,2615.0,2.3479]
[1724339135605,7.39,2615.8,2615.1,0.07646249]
[1724339135803,7.39,2615.8,2615.0,5.3479]
[1724339136116,7.39,2616.4,2615.1,2.4958]
[1724339136326,2.2761,2616.8,2615.3,2.4458]
[1724339136504,2.2761,2616.8,2615.4,0.25222472]
[1724339136680,2.2761,2616.8,2615.3,3.0]
[1724339136882,2.2761,2616.8,2614.9,0.24243625]